bitfinex/quotes_BTCUSD_20240701
["timestamp","ask_amount","ask_price","bid_price","bid_amount"]
[1719860319734,0.011,63746.0,63745.0,0.06025893]
[1719860319912,0.03618774,63746.0,63745.0,0.06025893]
[1719860320314,0.11318774,63746.0,63745.0,0.0009]
[1719860320511,0.23117173,63746.0,63745.0,0.0009]
[1719860321322,0.59766147,63746.0,63745.0,0.0009]
[1719860321676,0.59766147,63746.0,63745.0,0.001]
[1719860321875,0.64456694,63746.0,63745.0,0.001]
[1719860322257,0.95831194,63746.0,63745.0,0.001]
[1719860322436,0.91150647,63746.0,63745.0,0.001]
[1719860322859,0.91155657,63746.0,63745.0,0.001]
[1719860323310,1.29571916,63746.0,63745.0,0.001]
[1719860323511,1.26714675,63746.0,63745.0,0.001]
[1719860323717,1.56704675,63746.0,63745.0,0.001]
[1719860324407,1.66177426,63746.0,63745.0,0.001]
[1719860324561,1.65677426,63746.0,63745.0,0.0011]
[1719860324773,1.66377426,63746.0,63745.0,0.0021]
[1719860325193,1.56388675,63746.0,63745.0,0.0012]
[1719860325364,1.38965764,63746.0,63745.0,0.0012]
[1719860325571,1.40365764,63746.0,63745.0,0.0022]
[1719860325768,1.40375764,63746.0,63745.0,0.0022]
[1719860325968,1.40329969,63746.0,63745.0,0.0022]
[1719860326152,1.28589217,63746.0,63745.0,0.0022]
[1719860328608,1.30441763,63746.0,63745.0,0.0022]
[1719860329187,1.18546053,63746.0,63745.0,0.0022]
[1719860329362,1.30455371,63746.0,63745.0,0.0022]
[1719860329949,1.36785371,63746.0,63745.0,0.0022]
[1719860331820,1.30455371,63746.0,63745.0,0.0022]
[1719860332019,1.36785371,63746.0,63745.0,0.0022]
[1719860332382,1.24876053,63746.0,63745.0,0.0022]
[1719860332584,1.36782627,63746.0,63745.0,0.0022]
[1719860332791,1.24876053,63746.0,63745.0,0.0022]
[1719860332993,1.36785706,63746.0,63745.0,0.0022]
[1719860335584,1.66772761,63746.0,63745.0,0.0022]
[1719860335785,1.72945185,63746.0,63745.0,0.0022]
[1719860336000,2.09178556,63746.0,63745.0,0.0022]
[1719860336126,2.89858549,63746.0,63745.0,0.0022]
[1719860338818,2.89937479,63746.0,63745.0,0.0022]
[1719860339303,2.8993779,63746.0,63745.0,0.0022]
[1719860341401,2.89937676,63746.0,63745.0,0.0022]
[1719860341590,2.71779417,63746.0,63745.0,0.0022]
[1719860341803,2.83608872,63746.0,63745.0,0.0022]
[1719860342021,2.89938872,63746.0,63745.0,0.0022]
[1719860344008,2.84749369,63746.0,63745.0,0.0022]
[1719860344213,2.89948605,63746.0,63745.0,0.0022]
[1719860344467,2.76978653,63746.0,63745.0,0.0022]
[1719860344644,2.89951684,63746.0,63745.0,0.0022]
[1719860344979,3.32158055,63746.0,63745.0,0.0022]
[1719860345273,0.47145807,63719.0,63718.0,0.4662]
[1719860345429,0.00064107,63716.0,63715.0,0.000924]
[1719860345638,0.10616645,63716.0,63715.0,0.000924]
[1719860345818,0.2604474,63716.0,63715.0,0.000924]
[1719860346174,0.09999756,63716.0,63715.0,0.26208293]
[1719860346336,0.0350348,63716.0,63715.0,0.26208293]
[1719860346544,0.0350348,63716.0,63715.0,0.202724]
[1719860347502,0.14299474,63716.0,63715.0,0.139424]
[1719860347988,0.14399474,63716.0,63715.0,0.139424]
[1719860348790,0.14499474,63716.0,63715.0,0.139424]
[1719860348930,0.30258181,63716.0,63715.0,0.139424]
[1719860349133,0.61647381,63716.0,63715.0,0.000924]
[1719860350113,0.66462984,63716.0,63715.0,0.000924]
[1719860350268,0.61647381,63716.0,63715.0,0.000924]
[1719860350473,0.66464181,63716.0,63715.0,0.000924]
[1719860350672,0.34102069,63716.0,63715.0,0.000924]
[1719860350893,0.35016204,63716.0,63715.0,0.001024]
[1719860351114,0.35082663,63716.0,63715.0,0.001024]
[1719860351346,0.30275863,63716.0,63715.0,0.001024]
[1719860351576,0.35115262,63716.0,63715.0,0.001024]
[1719860352051,0.35115262,63716.0,63715.0,0.001124]
[1719860352533,0.30285863,63716.0,63715.0,0.001124]
[1719860352809,0.61675063,63716.0,63715.0,0.001124]
[1719860353732,0.6167573,63716.0,63715.0,0.001124]
[1719860353986,0.61674397,63716.0,63715.0,0.001124]
[1719860354211,0.61574397,63716.0,63715.0,0.001124]
[1719860354452,0.61974397,63716.0,63715.0,0.001124]
[1719860354651,0.62874397,63716.0,63715.0,0.001124]
[1719860355612,0.6281029,63716.0,63715.0,0.001124]
[1719860355840,0.62874397,63716.0,63715.0,0.001124]
[1719860356589,0.1572649,63716.0,63715.0,0.001124]
[1719860356760,0.3142109,63716.0,63715.0,0.001124]
[1719860356970,0.23616397,63716.0,63715.0,0.001124]
[1719860357166,0.31422188,63716.0,63715.0,0.083824]
[1719860357404,0.11442715,63716.0,63715.0,0.147224]
[1719860357819,0.04940918,63716.0,63715.0,0.147224]
[1719860357995,0.20635518,63716.0,63715.0,0.147224]
[1719860358204,0.04940918,63716.0,63715.0,0.147224]
[1719860359405,0.04940918,63716.0,63715.0,0.20658293]
[1719860359602,0.04940918,63716.0,63715.0,0.147224]
[1719860360314,0.04940238,63716.0,63715.0,0.147224]
[1719860360827,0.11442553,63716.0,63715.0,0.147224]
[1719860362426,0.15727126,63716.0,63715.0,0.147224]
[1719860363246,0.14747784,63716.0,63715.0,0.147224]
[1719860363454,0.15725984,63716.0,63715.0,0.147224]
[1719860366703,0.15726082,63716.0,63715.0,0.147224]
[1719860366936,0.20548157,63716.0,63715.0,0.147224]
[1719860369846,0.19570062,63716.0,63715.0,0.147224]
[1719860370025,0.2054826,63716.0,63715.0,0.147224]
[1719860371938,0.2054826,63716.0,63715.0,0.001124]
[1719860371939,0.22475558,63716.0,63715.0,0.001124]
[1719860372147,0.90144215,63716.0,63715.0,0.001124]
[1719860372322,0.93528552,63716.0,63715.0,0.001124]
[1719860372524,1.24616669,63716.0,63715.0,0.001124]
[1719860372728,1.29276669,63716.0,63715.0,0.001124]
[1719860372925,1.22451356,63716.0,63715.0,0.001124]
[1719860373129,1.29288172,63716.0,63715.0,0.001124]
[1719860373310,1.22451356,63716.0,63715.0,0.001124]
[1719860373515,1.29288121,63716.0,63715.0,0.001124]
[1719860374156,1.35486604,63716.0,63715.0,0.001124]
[1719860374313,1.42531924,63716.0,63715.0,0.001124]
[1719860375543,1.35486604,63716.0,63715.0,0.001124]
[1719860376017,1.17078636,63716.0,63715.0,0.001124]
[1719860376238,1.35487499,63716.0,63715.0,0.001124]
[1719860376569,1.44882521,63716.0,63715.0,0.001124]
[1719860378373,1.35487499,63716.0,63715.0,0.001124]
[1719860379173,0.15760207,63710.0,63709.0,0.000924]
[1719860379397,0.00064107,63709.0,63708.0,0.07369579]
[1719860379647,0.19139939,63709.0,63708.0,0.07369579]
[1719860379859,0.156968,63707.0,63701.0,0.0608]
[1719860380072,0.34837039,63706.0,63701.0,0.0608]
[1719860380345,0.19139939,63705.0,63701.0,0.0608]
[1719860380489,0.14317864,63704.0,63701.0,0.0608]
[1719860380688,0.14317864,63703.0,63701.0,0.0608]
[1719860380942,0.14318405,63702.0,63701.0,0.0608]
[1719860381146,0.10028201,63702.0,63700.0,0.2]
[1719860381347,0.156973,63705.0,63701.0,0.0613]
[1719860381645,0.19510362,63704.0,63701.0,0.0613]
[1719860381881,0.19710362,63703.0,63701.0,0.0613]
[1719860382036,0.156983,63701.0,63694.0,0.0613]
[1719860382234,0.19284385,63702.0,63694.0,0.0613]
[1719860382235,0.19274385,63700.0,63694.0,0.0613]
[1719860382404,0.06507045,63700.0,63695.0,0.0765]
[1719860382612,0.07832356,63699.0,63695.0,0.0765]
[1719860382872,0.06507045,63698.0,63695.0,0.0765]
[1719860383035,0.07832676,63697.0,63695.0,0.0765]
[1719860383226,0.00064107,63700.0,63695.0,0.0765]
[1719860383227,0.14339721,63696.0,63695.0,0.0765]
[1719860384247,0.14339721,63696.0,63695.0,0.13585893]
[1719860384248,0.14329721,63696.0,63695.0,0.13585893]
[1719860384447,0.14329721,63696.0,63695.0,0.0765]
[1719860384873,0.14829721,63696.0,63695.0,0.0765]
[1719860385473,0.14929721,63696.0,63695.0,0.0765]
[1719860385677,0.12386289,63696.0,63695.0,0.0765]
[1719860386895,0.12386289,63696.0,63695.0,0.13585893]
[1719860388229,0.08085086,63696.0,63695.0,0.13585893]
[1719860388560,0.08075086,63696.0,63695.0,0.19905893]
[1719860388893,0.01578048,63696.0,63695.0,0.19905893]
[1719860389103,0.01578048,63696.0,63695.0,0.20219855]
[1719860389513,0.006,63696.0,63695.0,0.20219855]
[1719860389736,0.006,63696.0,63695.0,0.23219855]
[1719860389936,0.006,63696.0,63695.0,0.23312255]
[1719860390788,0.0049,63696.0,63695.0,0.26328293]
[1719860390991,0.001,63696.0,63695.0,0.26328293]
[1719860391398,0.0009,63696.0,63695.0,0.26328293]
[1719860391598,0.04700624,63705.0,63704.0,0.20315893]
[1719860391947,0.09975537,63705.0,63704.0,0.1438]
[1719860392148,0.16481296,63705.0,63704.0,0.1438]
[1719860392509,0.16481019,63705.0,63704.0,0.1438]
[1719860393486,0.16981019,63705.0,63704.0,0.1438]
[1719860393655,0.1883345,63705.0,63704.0,0.1438]
[1719860394084,0.1973345,63705.0,63704.0,0.1438]
[1719860394439,0.22287538,63705.0,63704.0,0.1438]
[1719860394899,0.2228748,63705.0,63704.0,0.1438]
[1719860395148,0.14050752,63705.0,63704.0,0.1438]
[1719860395356,0.17582884,63705.0,63704.0,0.20315893]
[1719860395789,0.17582884,63705.0,63704.0,0.20305893]
[1719860396247,0.17582884,63705.0,63704.0,0.20295893]
[1719860397325,0.15730453,63705.0,63704.0,0.34560197]
[1719860397554,0.04932132,63705.0,63704.0,0.34560197]
[1719860397793,0.11434714,63705.0,63704.0,0.34560197]
[1719860398010,0.07902582,63705.0,63704.0,0.34560197]
[1719860398159,0.04931265,63705.0,63704.0,0.34560197]
[1719860398373,0.04926044,63705.0,63704.0,0.26625893]
[1719860398616,0.11428384,63705.0,63704.0,0.26625893]
[1719860399228,0.0790234,63705.0,63704.0,0.26625893]
[1719860399542,0.11427902,63705.0,63704.0,0.26625893]
[1719860399965,0.11427902,63705.0,63704.0,0.20295893]
[1719860400171,0.11427902,63705.0,63704.0,0.26625893]
[1719860400354,0.15716873,63705.0,63704.0,0.26625893]
[1719860400549,0.11427912,63705.0,63704.0,0.26625893]
[1719860400749,0.11427912,63705.0,63704.0,0.2069]
[1719860401151,0.15715622,63705.0,63704.0,0.26625893]
[1719860401755,0.08880274,63705.0,63704.0,0.2069]
[1719860402036,0.11428233,63705.0,63704.0,0.2069]
[1719860402208,0.08880348,63705.0,63704.0,0.2069]
[1719860402368,0.15717732,63705.0,63704.0,0.26625893]
[1719860403077,0.15717732,63705.0,63704.0,0.26615893]
[1719860403355,0.15717732,63705.0,63703.0,0.2]
[1719860403600,0.14317825,63704.0,63703.0,0.2]
[1719860403802,0.10028266,63704.0,63703.0,0.25935893]
[1719860403959,0.03525926,63704.0,63703.0,0.32575893]
[1719860404523,0.00978013,63704.0,63703.0,0.32575893]
[1719860404649,0.01864927,63709.0,63707.0,0.05925893]
[1719860404650,0.04703865,63708.0,63707.0,0.05925893]
[1719860404862,0.14731814,63708.0,63707.0,0.05925893]
[1719860405106,0.1902037,63708.0,63707.0,0.05925893]
[1719860405455,0.1902037,63708.0,63705.0,0.0633]
[1719860405773,0.14316505,63707.0,63706.0,0.05925893]
[1719860405970,0.14316505,63707.0,63706.0,0.13685893]
[1719860406316,0.14316505,63707.0,63706.0,0.20305893]
[1719860407596,0.14316505,63707.0,63706.0,0.20295893]
[1719860407812,0.14314732,63707.0,63706.0,0.20295893]
[1719860409047,0.15114732,63707.0,63706.0,0.20295893]
[1719860410113,0.16314732,63707.0,63706.0,0.20305893]
[1719860410948,0.16314816,63707.0,63706.0,0.20305893]
[1719860411148,0.16314816,63707.0,63706.0,0.1439]
[1719860411357,0.16314816,63707.0,63706.0,0.0001]
[1719860411556,0.29661911,63707.0,63706.0,0.0001]
[1719860411730,0.41426457,63707.0,63706.0,0.0001]
[1719860411931,0.66000649,63707.0,63706.0,0.0001]
[1719860412384,0.72330649,63707.0,63706.0,0.0001]
[1719860412718,1.35118049,63707.0,63706.0,0.0002]
[1719860412847,1.35128049,63707.0,63706.0,0.0002]
[1719860413193,1.49245504,63707.0,63706.0,0.0002]
[1719860413506,1.48055504,63707.0,63706.0,0.0002]
[1719860413720,2.26272575,63707.0,63706.0,0.0002]
[1719860413930,1.71345259,63707.0,63706.0,0.0002]
[1719860414126,1.62927839,63707.0,63706.0,0.0002]
[1719860414335,2.73055797,63707.0,63706.0,0.0002]
[1719860414562,2.98964107,63707.0,63706.0,0.0002]
[1719860414791,3.16781383,63707.0,63706.0,0.0002]
[1719860415004,3.25558606,63707.0,63706.0,0.0002]
[1719860415231,3.41791977,63707.0,63706.0,0.0002]
[1719860415459,3.40391977,63707.0,63706.0,0.0002]
[1719860415667,0.98561807,63696.0,63695.0,0.000924]
[1719860415865,1.63177247,63696.0,63695.0,0.000924]
[1719860416287,2.08662405,63696.0,63695.0,0.000924]
[1719860416463,2.48996897,63696.0,63695.0,0.000924]
[1719860416871,2.26932752,63696.0,63695.0,0.000924]
[1719860417216,2.34892807,63696.0,63695.0,0.000924]
[1719860417424,2.36292807,63696.0,63695.0,0.000924]
[1719860417821,2.64892807,63696.0,63695.0,0.000924]
[1719860417984,2.66292807,63696.0,63695.0,0.000924]
[1719860418187,2.91793593,63696.0,63695.0,0.000924]
[1719860419056,2.93193593,63696.0,63695.0,0.000924]
[1719860419271,1.39956207,63693.0,63692.0,0.009251]
[1719860419406,1.94543615,63693.0,63692.0,0.009251]
[1719860419605,1.94543615,63693.0,63690.0,0.009251]
[1719860419606,1.39949707,63691.0,63690.0,0.009251]
[1719860419812,1.39949707,63691.0,63688.0,0.009251]
[1719860419813,0.77147807,63689.0,63688.0,0.009251]
[1719860420021,2.20272184,63689.0,63688.0,0.009251]
[1719860420221,2.24561192,63689.0,63688.0,0.009251]
[1719860420676,2.54561192,63689.0,63688.0,0.009251]
[1719860420893,2.79795657,63689.0,63688.0,0.009251]
[1719860421114,2.96029028,63689.0,63688.0,0.009251]
[1719860421333,2.91099028,63689.0,63688.0,0.009251]
[1719860421465,2.97429028,63689.0,63688.0,0.009251]
[1719860421663,2.96029028,63689.0,63688.0,0.009251]
[1719860422184,1.89946307,63687.0,63674.0,0.0617]
[1719860422388,2.56068063,63687.0,63674.0,0.0617]
[1719860422765,2.26088063,63687.0,63674.0,0.0617]
[1719860422977,0.70501507,63687.0,63681.0,0.009551]
[1719860423189,0.35435886,63687.0,63685.0,0.0003]
[1719860423390,0.14319,63687.0,63684.0,0.1377]
[1719860423616,0.09216745,63687.0,63684.0,0.1377]
[1719860423816,0.04926997,63687.0,63684.0,0.1377]
[1719860424017,0.12861648,63687.0,63684.0,0.1377]
[1719860424191,0.12861648,63687.0,63681.0,0.009251]
[1719860424192,0.50996464,63687.0,63681.0,0.009251]
[1719860424395,0.88890373,63687.0,63681.0,0.009251]
[1719860425020,0.9357249,63687.0,63681.0,0.009251]
[1719860425220,1.2497599,63687.0,63681.0,0.009251]
[1719860425422,1.20293873,63687.0,63681.0,0.009251]
[1719860425627,0.88836266,63687.0,63681.0,0.009251]
[1719860425862,0.80436266,63687.0,63681.0,0.009251]
[1719860426186,0.77893888,63687.0,63681.0,0.009251]
[1719860426689,0.77946438,63687.0,63681.0,0.009251]
[1719860428877,1.09349938,63687.0,63681.0,0.009251]
[1719860429292,2.26199063,63687.0,63681.0,0.009251]
[1719860429532,2.5001209,63687.0,63686.0,1e-08]
[1719860429695,2.47440467,63687.0,63686.0,1e-08]
[1719860429904,2.56795665,63687.0,63686.0,1e-08]
[1719860430059,2.73029036,63687.0,63686.0,1e-08]
[1719860430258,2.70687348,63687.0,63686.0,1e-08]
[1719860430683,2.67914111,63687.0,63686.0,1e-08]
[1719860431061,2.60900601,63687.0,63686.0,1e-08]
[1719860431262,2.67913992,63687.0,63686.0,1e-08]
[1719860431467,2.67913992,63687.0,63672.0,0.009262]
[1719860431468,0.15759307,63673.0,63672.0,0.009262]
[1719860431689,1.00081389,63673.0,63672.0,0.009262]
[1719860431864,1.06571739,63673.0,63672.0,0.009262]
[1719860432442,1.05595281,63673.0,63672.0,0.009262]
[1719860432625,1.00081529,63673.0,63672.0,0.009262]
[1719860433073,1.00681529,63673.0,63672.0,0.010262]
[1719860433305,1.00881529,63673.0,63672.0,0.010262]
[1719860434026,1.00081529,63673.0,63672.0,0.009262]
[1719860434296,1.02636434,63673.0,63672.0,0.010262]
[1719860434557,1.04326434,63673.0,63672.0,0.011262]
[1719860434798,1.1081633,63673.0,63672.0,0.011262]
[1719860435066,1.10772223,63673.0,63672.0,0.011262]
[1719860435303,1.04326434,63673.0,63672.0,0.011262]
[1719860435553,0.36185161,63673.0,63672.0,0.011262]
[1719860435766,0.04256063,63673.0,63672.0,0.21372093]
[1719860435971,0.04256063,63673.0,63672.0,0.24372093]
[1719860435972,0.017,63673.0,63672.0,0.24372093]
[1719860436612,0.017,63673.0,63672.0,0.21372093]
[1719860436793,0.014,63673.0,63672.0,0.21272093]
[1719860437028,0.014,63673.0,63672.0,0.21172093]
[1719860437235,0.001,63673.0,63672.0,0.22072093]
[1719860437436,0.002,63673.0,63672.0,0.22772093]
[1719860437648,0.002,63673.0,63672.0,0.25772093]
[1719860437846,0.002,63673.0,63672.0,0.26086136]
[1719860438264,0.002,63673.0,63672.0,0.22772093]
[1719860438635,0.001,63673.0,63672.0,0.24872093]
[1719860438863,0.002,63673.0,63672.0,0.26086125]
[1719860439077,0.002,63673.0,63672.0,0.73202425]
[1719860439247,0.0002,63689.0,63672.0,0.73202425]
[1719860439248,0.01930792,63689.0,63688.0,0.20355893]
[1719860439450,0.01920792,63689.0,63688.0,0.20355893]
[1719860439655,0.04471829,63689.0,63688.0,0.20355893]
[1719860440055,0.04461829,63689.0,63688.0,0.20355893]
[1719860440261,0.02551037,63689.0,63688.0,0.20355893]
[1719860440458,0.02551494,63697.0,63692.0,0.0003]
[1719860440659,0.0184959,63693.0,63692.0,0.0003]
[1719860440836,0.00977267,63693.0,63692.0,0.0003]
[1719860441038,0.02551369,63693.0,63692.0,0.05955893]
[1719860441422,0.00977267,63693.0,63692.0,0.05955893]
[1719860441757,0.07822345,63693.0,63692.0,0.05955893]
[1719860442162,0.09222345,63693.0,63692.0,0.06055893]
[1719860442569,0.04928636,63693.0,63692.0,0.06045893]
[1719860442771,0.04928636,63693.0,63692.0,0.12245893]
[1719860442974,0.05351369,63693.0,63692.0,0.19855893]
[1719860443514,0.03528499,63693.0,63692.0,0.19655893]
[1719860443855,0.05628499,63693.0,63692.0,0.19855893]
[1719860444081,0.04651369,63693.0,63692.0,0.1393]
[1719860444291,0.05628534,63693.0,63692.0,0.1393]
[1719860444538,0.05639891,63693.0,63692.0,0.1393]
[1719860444766,0.05639891,63693.0,63692.0,0.19845893]
[1719860445211,0.03077184,63693.0,63692.0,0.1391]
[1719860445421,0.09942893,63693.0,63692.0,0.1391]
[1719860445673,0.05639891,63693.0,63692.0,0.1391]
[1719860445851,0.09942901,63693.0,63692.0,0.1391]
[1719860446185,0.09942901,63693.0,63692.0,0.002]
[1719860446337,0.16437702,63693.0,63692.0,0.002]
[1719860446980,0.12134692,63693.0,63692.0,0.002]
[1719860447304,0.5381113,63693.0,63692.0,0.002]
[1719860447440,1.15255837,63693.0,63692.0,0.002]
[1719860447672,1.45832291,63693.0,63692.0,0.002]
[1719860447894,1.52714293,63693.0,63692.0,0.002]
[1719860448120,1.70213558,63693.0,63692.0,0.002]
[1719860448316,1.82704392,63693.0,63692.0,0.002]
[1719860448520,1.52714392,63693.0,63692.0,0.002]
[1719860448834,1.68947763,63693.0,63692.0,0.0019]
[1719860449417,1.68947763,63693.0,63692.0,0.0018]
[1719860449620,1.52714392,63693.0,63692.0,0.0018]
[1719860449842,0.38180326,63693.0,63692.0,0.0018]
[1719860450204,0.53826519,63693.0,63692.0,0.0018]
[1719860450414,0.53880626,63693.0,63692.0,0.0018]
[1719860450620,0.46021758,63693.0,63692.0,0.0018]
[1719860450824,0.53879957,63693.0,63692.0,0.0018]
[1719860451506,0.85280557,63693.0,63692.0,0.0018]
[1719860451712,1.8269785,63693.0,63692.0,0.0018]
[1719860451862,1.9854785,63693.0,63692.0,0.0018]
[1719860452065,1.7323689,63693.0,63692.0,0.0018]
[1719860452266,2.63381221,63693.0,63692.0,0.0018]
[1719860452901,2.33391221,63693.0,63692.0,0.0018]
[1719860453104,2.1715785,63693.0,63692.0,0.0017]
[1719860453268,2.4714785,63693.0,63692.0,0.0017]
[1719860453463,2.4624785,63693.0,63692.0,0.001]
[1719860453669,2.4624785,63693.0,63676.0,0.4662]
[1719860453670,0.15703,63682.0,63676.0,0.4662]
[1719860453887,0.36070405,63681.0,63676.0,0.4662]
[1719860454087,0.20115853,63680.0,63676.0,0.4662]
[1719860454322,0.36349751,63679.0,63676.0,0.4662]
[1719860454654,0.00054107,63677.0,63676.0,0.4662]
[1719860454770,0.36403858,63677.0,63676.0,0.4662]
[1719860454974,0.83516558,63677.0,63676.0,0.4662]
[1719860456037,0.83462451,63677.0,63676.0,0.4662]
[1719860456240,0.20115853,63677.0,63676.0,0.4662]
[1719860456442,0.14587855,63677.0,63676.0,0.60645893]
[1719860456606,0.1027629,63677.0,63676.0,0.67105893]
[1719860457064,0.10224604,63677.0,63676.0,0.6118]
[1719860458018,0.10724604,63677.0,63676.0,0.6118]
[1719860458220,0.10724604,63677.0,63676.0,0.1456]
[1719860458221,0.10714604,63677.0,63676.0,0.1456]
[1719860460175,0.07174801,63677.0,63676.0,0.1456]
[1719860460501,0.11691947,63677.0,63676.0,0.20485893]
[1719860460842,0.11691947,63677.0,63676.0,0.1456]
[1719860461383,0.10715374,63677.0,63676.0,0.20485893]
[1719860461591,0.10715374,63677.0,63676.0,0.1456]
[1719860462189,0.10715374,63677.0,63672.0,0.072562]
[1719860462190,0.32227427,63677.0,63672.0,0.072562]
[1719860462392,0.47169707,63673.0,63672.0,0.009262]
[1719860462607,1.24330379,63673.0,63672.0,0.009262]
[1719860462737,1.27272884,63673.0,63672.0,0.009262]
[1719860463360,1.27262884,63673.0,63672.0,0.009262]
[1719860463760,1.21667275,63673.0,63672.0,0.009262]
[1719860463971,1.272732,63673.0,63672.0,0.009262]
[1719860464185,1.38993179,63673.0,63672.0,0.009262]
[1719860464396,1.272732,63673.0,63672.0,0.009262]
[1719860464596,1.286732,63673.0,63672.0,0.009262]
[1719860464797,1.272732,63673.0,63672.0,0.009262]
[1719860465042,1.286732,63673.0,63672.0,0.009262]
[1719860465220,1.40388979,63673.0,63672.0,0.009262]
[1719860465432,1.300732,63673.0,63672.0,0.009262]
[1719860466149,1.41787761,63673.0,63672.0,0.009262]
[1719860467210,1.41803301,63673.0,63672.0,0.009262]
[1719860467594,1.33203301,63673.0,63672.0,0.009262]
[1719860467794,1.33193301,63673.0,63672.0,0.009262]
[1719860468585,1.51458522,63673.0,63672.0,0.009262]
[1719860469217,1.63169331,63673.0,63672.0,0.009262]
[1719860469413,1.51458522,63673.0,63672.0,0.009262]
[1719860469616,1.21468522,63673.0,63672.0,0.009262]
[1719860469791,1.33178819,63673.0,63672.0,0.009262]
[1719860470173,1.33319579,63673.0,63672.0,0.009262]
[1719860471079,1.26268338,63673.0,63672.0,0.009262]
[1719860471285,1.26214231,63673.0,63672.0,0.009262]
[1719860471483,1.26278338,63673.0,63672.0,0.009262]
[1719860471950,1.30967593,63673.0,63672.0,0.009262]
[1719860472562,1.21600108,63673.0,63672.0,0.009262]
[1719860473181,1.23496099,63673.0,63672.0,0.009262]
[1719860473510,1.23500394,63673.0,63672.0,0.009262]
[1719860473916,1.23499725,63673.0,63672.0,0.009362]
[1719860474111,1.3286486,63673.0,63672.0,0.009362]
[1719860475117,0.54324753,63673.0,63672.0,0.009362]
[1719860475316,0.67687312,63673.0,63672.0,0.148762]
[1719860476080,0.99151819,63673.0,63672.0,0.009362]
[1719860476249,1.23539725,63673.0,63672.0,0.009362]
[1719860476407,1.23623254,63673.0,63672.0,0.009362]
[1719860476613,1.23628143,63673.0,63672.0,0.009362]
[1719860477346,1.36230024,63673.0,63672.0,0.009362]
[1719860477548,1.97630424,63673.0,63672.0,0.009362]
[1719860478905,2.32990424,63673.0,63672.0,0.009362]
[1719860479088,2.23628543,63673.0,63672.0,0.009362]
[1719860479666,2.23454873,63673.0,63672.0,0.009362]
[1719860480044,1.93464873,63673.0,63672.0,0.009362]
[1719860483537,2.54273438,63673.0,63672.0,0.009362]
[1719860484273,2.51033438,63673.0,63672.0,0.009362]
[1719860484784,1.74775931,63673.0,63672.0,0.009362]
[1719860484982,1.74830038,63673.0,63672.0,0.009362]
[1719860485326,1.72490325,63673.0,63672.0,0.009362]
[1719860485617,1.41025818,63673.0,63672.0,0.009362]
[1719860485768,1.41025818,63673.0,63672.0,0.085062]
[1719860485769,0.92233138,63673.0,63672.0,0.085062]
[1719860485913,0.99107995,63673.0,63672.0,0.085062]
[1719860486112,0.85197403,63673.0,63672.0,0.085062]
[1719860486318,0.99108253,63673.0,63672.0,0.085062]
[1719860486518,1.3057276,63673.0,63672.0,0.009362]
[1719860486766,1.3065676,63673.0,63672.0,0.009362]
[1719860487390,1.23636173,63673.0,63672.0,0.009362]
[1719860488163,1.39486173,63673.0,63672.0,0.009362]
[1719860488362,1.65559855,63673.0,63672.0,0.009362]
[1719860488574,1.74920638,63673.0,63672.0,0.009362]
[1719860488734,2.34149855,63673.0,63672.0,0.009362]
[1719860488936,2.34050341,63673.0,63672.0,0.009362]
[1719860489376,2.4300729,63673.0,63672.0,0.009362]
[1719860489762,2.7441769,63673.0,63672.0,0.009362]
[1719860490888,2.8441769,63673.0,63672.0,0.009362]
[1719860491566,2.98464115,63673.0,63672.0,0.009362]
[1719860492118,2.84556798,63673.0,63672.0,0.009362]
[1719860492315,2.68625113,63673.0,63672.0,0.009362]
[1719860492522,2.54566798,63673.0,63672.0,0.009362]
[1719860492844,2.68625113,63673.0,63672.0,0.009362]
[1719860493398,2.84556798,63673.0,63672.0,0.009362]
[1719860494699,3.04556798,63673.0,63672.0,0.000145]
[1719860495328,3.00949246,63673.0,63672.0,0.000145]
[1719860495531,3.04560699,63673.0,63672.0,0.000145]
[1719860497217,3.2079407,63673.0,63672.0,0.000145]
[1719860497638,3.2079407,63673.0,63660.0,0.0612]
[1719860497639,0.00054107,63661.0,63660.0,0.0612]
[1719860497844,0.47005327,63661.0,63660.0,0.0612]
[1719860498045,1.18855411,63661.0,63660.0,0.0612]
[1719860498457,1.13112658,63661.0,63660.0,0.0612]
[1719860498659,1.18806727,63661.0,63660.0,0.0612]
[1719860498986,1.45389031,63661.0,63660.0,0.0612]
[1719860499879,1.44889031,63661.0,63660.0,0.0612]
[1719860500083,1.45789031,63661.0,63660.0,0.0612]
[1719860500243,1.19715349,63661.0,63660.0,0.0612]
[1719860500430,1.45481593,63661.0,63660.0,0.0612]
[1719860500635,1.45781593,63661.0,63660.0,0.0612]
[1719860501070,1.47181593,63661.0,63660.0,0.0612]
[1719860501348,1.40293776,63661.0,63660.0,0.0612]
[1719860501580,1.47173397,63661.0,63660.0,0.0612]
[1719860502009,1.21397153,63661.0,63660.0,0.0612]
[1719860502232,1.21397153,63661.0,63659.0,0.009262]
[1719860502233,1.71420107,63660.0,63659.0,0.009262]
[1719860502460,3.14883366,63660.0,63659.0,1e-08]
[1719860502685,3.14883366,63660.0,63654.0,0.009251]
[1719860502686,0.78592307,63655.0,63654.0,0.009251]
[1719860502898,1.96073653,63655.0,63654.0,0.009251]
[1719860503561,1.96063653,63655.0,63654.0,0.009251]
[1719860503969,2.2175985,63655.0,63654.0,0.009251]
[1719860504166,2.2315985,63655.0,63654.0,0.009251]
[1719860504403,2.2455985,63655.0,63654.0,0.009251]
[1719860504648,2.17971003,63655.0,63654.0,0.009251]
[1719860504855,2.24895114,63655.0,63654.0,0.009251]
[1719860505063,2.24895114,63655.0,63654.0,0.004251]
[1719860505609,2.24885114,63655.0,63654.0,0.004251]
[1719860505815,2.41959371,63655.0,63654.0,0.004251]
[1719860506733,2.41949371,63655.0,63654.0,0.004251]
[1719860507152,2.5484064,63655.0,63654.0,0.004251]
[1719860507716,2.2485064,63655.0,63654.0,0.004251]
[1719860507944,2.5484064,63655.0,63654.0,0.004251]
[1719860508902,2.54842053,63655.0,63654.0,0.004251]
[1719860509364,3.32494724,63655.0,63654.0,0.004251]
[1719860509819,3.16251353,63655.0,63654.0,0.004251]
[1719860510973,3.24851353,63655.0,63654.0,0.004251]
[1719860512072,3.24546763,63655.0,63654.0,0.004251]
[1719860512966,3.24536763,63655.0,63654.0,0.004251]
[1719860513673,3.24536763,63655.0,63654.0,1e-08]
[1719860513900,3.22526763,63655.0,63654.0,1e-08]